bitfinex/quotes_SOLUSD_20241016
["timestamp","ask_amount","ask_price","bid_price","bid_amount"]
[1729069867760,15.5537,154.75,154.71,12.85148467]
[1729069868166,6.4629,154.73,154.68,20.0]
[1729069868455,6.4625,154.74,154.68,20.0]
[1729069869579,30.0,154.7,154.68,20.0]
[1729069872172,6.4634,154.72,154.68,20.0]
[1729069872541,6.4634,154.72,154.65,0.12594599]
[1729069872542,6.4634,154.72,154.65,12.97743066]
[1729069872861,6.4634,154.72,154.66,20.0]
[1729069873054,15.5537,154.75,154.66,20.0]
[1729069873445,15.5537,154.75,154.67,12.85148467]
[1729069873669,22.0158,154.75,154.68,20.0]
[1729069874857,15.5537,154.75,154.68,20.0]
[1729069875045,6.4625,154.74,154.68,20.0]
[1729069875246,30.0,154.69,154.68,20.0]
[1729069879269,30.0,154.69,154.66,20.0]
[1729069879442,30.0,154.69,154.66,32.85148467]
[1729069881171,30.0,154.69,154.66,20.0]
[1729069881473,30.0,154.69,154.65,0.12594599]
[1729069887182,30.0,154.69,154.65,12.97743066]
[1729069887494,30.0,154.69,154.67,12.85148467]
[1729069889064,30.0,154.69,154.68,20.0]
[1729069910298,30.0,154.69,154.68,43.776884]
[1729069912469,15.3856,154.73,154.68,20.0]
[1729069913075,15.3856,154.73,154.67,20.0]
[1729069913369,15.3856,154.73,154.67,32.85148467]
[1729069914792,15.3856,154.73,154.69,32.85148467]
[1729069915407,15.3856,154.73,154.71,12.85148467]
[1729069915581,15.9674,154.77,154.72,20.0]
[1729069916299,15.9674,154.77,154.73,36.62836867]
[1729069918595,15.9674,154.77,154.74,20.0]
[1729069919265,22.8848,154.81,154.75,12.85148467]
[1729069920093,16.4252,154.81,154.76,20.0]
[1729069920870,6.4599,154.8,154.76,20.0]
[1729069921101,16.4252,154.81,154.76,20.0]
[1729069921394,22.8848,154.81,154.76,20.0]
[1729069922201,22.8848,154.81,154.74,20.0]
[1729069922373,22.8848,154.81,154.75,23.776884]
[1729069922577,22.8848,154.81,154.76,20.0]
[1729069926011,16.4252,154.81,154.78,20.0]
[1729069927303,16.4252,154.81,154.75,43.776884]
[1729069928982,16.4252,154.81,154.77,20.0]
[1729069929602,6.4583,154.84,154.78,36.62836867]
[1729069930110,15.0262,154.85,154.78,36.62836867]
[1729069930708,21.4841,154.85,154.78,36.62836867]
[1729069931211,15.0262,154.85,154.78,36.62836867]
[1729069931912,21.4841,154.85,154.78,36.62836867]
[1729069932295,21.4841,154.85,154.79,20.0]
[1729069935619,15.0262,154.85,154.81,20.0]
[1729069939017,6.4591,154.82,154.76,20.0]
[1729069939919,15.0262,154.85,154.76,20.0]
[1729069940098,6.4587,154.83,154.76,20.0]
[1729069941295,6.4587,154.83,154.77,23.776884]
[1729069941818,6.4587,154.83,154.78,20.0]
[1729069949526,6.4585,154.84,154.78,20.0]
[1729069963536,6.4585,154.84,154.79,23.776884]
[1729069964632,15.0262,154.85,154.79,23.776884]
[1729069964818,15.0262,154.85,154.8,20.0]
[1729069965521,15.0262,154.85,154.8,32.85148467]
[1729069965833,6.4571,154.87,154.81,23.776884]
[1729069966824,6.4566,154.88,154.82,20.0]
[1729069967220,6.4566,154.88,154.82,32.85148467]
[1729069970515,15.0163,154.89,154.84,32.85148467]
[1729069971538,15.0163,154.89,154.85,23.776884]
[1729069971917,6.4554,154.91,154.85,23.776884]
[1729069975519,30.0,154.86,154.85,23.776884]
[1729069978946,30.0,154.86,154.85,43.776884]
[1729069980627,15.3592,154.93,154.87,23.776884]
[1729069980822,6.0122,154.94,154.9,20.0]
[1729069981221,6.4537,154.95,154.9,20.0]
[1729069981443,30.0,154.91,154.9,43.776884]
[1729069981646,30.0,154.91,154.9,56.62836867]
[1729069981851,30.0,154.91,154.9,43.776884]
[1729069982417,30.0,154.91,154.9,20.0]
[1729069982723,30.0,154.91,154.87,32.85148467]
[1729069983839,30.0,154.91,154.9,43.776884]
[1729069984229,30.0,154.91,154.9,20.0]
[1729069984427,30.0,154.91,154.88,23.776884]
[1729069984735,30.0,154.91,154.89,20.0]
[1729069988651,30.0,154.91,154.89,19.66953372]
[1729069988826,30.0,154.91,154.9,23.776884]
[1729069990953,30.0,154.91,154.9,43.776884]
[1729069993539,16.6652,154.97,154.92,23.776884]
[1729069993940,16.6652,154.97,154.91,20.0]
[1729069994142,16.6652,154.97,154.92,23.776884]
[1729069994343,6.4536,154.96,154.91,20.0]
[1729069996437,30.0,154.92,154.91,20.0]
[1729070000153,30.0,154.92,154.87,12.85148467]
[1729070000361,46.4246,154.92,154.78,40.01582849]
[1729070000548,6.4567,154.88,154.8,12.85148467]
[1729070000856,30.0,154.86,154.8,12.85148467]
[1729070002567,30.0,154.86,154.82,12.85148467]
[1729070002931,30.0,154.86,154.84,36.62836867]
[1729070003147,30.0,154.86,154.85,43.776884]
[1729070004041,16.5199,154.96,154.85,43.876884]
[1729070004247,16.5199,154.96,154.91,43.776884]
[1729070005155,30.0,154.92,154.91,43.776884]
[1729070006661,30.0,154.92,154.89,43.776884]
[1729070013765,16.5199,154.96,154.89,43.776884]
[1729070016741,30.0,154.91,154.89,56.62836867]
[1729070017862,30.0,154.91,154.89,43.776884]
[1729070018047,30.0,154.91,154.89,56.62836867]
[1729070027180,16.5199,154.96,154.89,56.62836867]
[1729070027486,16.5199,154.96,154.91,12.85148467]
[1729070027651,16.5199,154.96,154.92,23.776884]
[1729070032972,16.5199,154.96,154.9,43.776884]
[1729070033368,16.5199,154.96,154.9,20.0]
[1729070034564,16.5199,154.96,154.92,20.0]
[1729070035866,16.5199,154.96,154.9,20.0]
[1729070036069,16.5199,154.96,154.92,20.0]
[1729070036361,22.9733,154.96,154.92,20.0]
[1729070038691,6.4539,154.95,154.86,0.96893545]
[1729070038865,6.4539,154.95,154.89,12.85148467]
[1729070039191,6.4539,154.95,154.9,23.83177361]
[1729070039374,6.4541,154.94,154.9,20.0]
[1729070039885,6.4541,154.94,154.88,20.0]
[1729070040194,6.4541,154.94,154.89,3.8321412]
[1729070040561,6.4541,154.94,154.89,23.776884]
[1729070040868,6.4541,154.94,154.9,20.0]
[1729070043180,22.9735,154.96,154.9,20.0]
[1729070044381,6.4537,154.95,154.9,20.0]
[1729070044794,16.5199,154.96,154.9,20.0]
[1729070044973,6.4542,154.94,154.86,13.82042012]
[1729070045173,16.5199,154.96,154.87,3.8329809]
[1729070045174,21.7188,154.95,154.87,3.8329809]
[1729070045396,6.4556,154.91,154.86,0.96893545]
[1729070045601,21.6188,154.95,154.87,3.83470867]
[1729070048086,21.6188,154.95,154.9,20.0]
[1729070054480,21.6188,154.95,154.91,23.776884]
[1729070055491,15.5945,154.95,154.91,23.776884]
[1729070055691,15.5945,154.95,154.92,20.0]
[1729070056904,6.4529,154.97,154.92,20.0]
[1729070060328,6.4533,154.96,154.92,20.0]
[1729070064118,6.4533,154.96,154.91,23.776884]
[1729070065328,6.4533,154.96,154.9,43.776884]
[1729070070411,22.297,154.99,154.9,43.776884]
[1729070070710,6.4529,154.97,154.9,43.776884]
[1729070077210,22.297,154.99,154.91,12.85148467]
[1729070077394,22.297,154.99,154.94,23.776884]
[1729070077599,16.2685,154.99,154.94,23.776884]
[1729070086108,6.4525,154.98,154.94,23.776884]
[1729070087004,16.2685,154.99,154.94,36.62836867]
[1729070087721,30.0,154.95,154.94,56.62836867]
[1729070089610,30.0,154.95,154.94,43.776884]
[1729070090021,30.0,154.95,154.91,12.85148467]
[1729070090205,30.0,154.95,154.92,3.82878872]
[1729070090525,30.0,154.95,154.91,12.85148467]
[1729070090730,30.0,154.95,154.92,3.82877773]
[1729070090905,30.0,154.95,154.91,12.85148467]
[1729070091105,30.0,154.95,154.92,3.82877717]
[1729070091314,30.0,154.95,154.92,23.776884]
[1729070093808,30.0,154.95,154.94,23.776884]
[1729070094908,22.7206,154.99,154.94,23.776884]
[1729070097029,16.2685,154.99,154.94,23.776884]
[1729070097911,30.0,154.95,154.94,23.776884]
[1729070098120,30.0,154.95,154.94,43.776884]
[1729070105330,30.0,154.95,154.94,47.70522261]
[1729070105331,28.79199281,154.95,154.94,47.70522261]
[1729070105634,28.79199281,154.95,154.94,47.60361835]
[1729070106129,6.451,155.02,154.96,23.776884]
[1729070106326,6.4514,155.01,154.97,20.0]
[1729070107423,28.65861301,155.03,154.99,20.0]
[1729070111543,6.4509,155.02,154.99,20.0]
[1729070111926,28.65841301,155.03,154.99,20.0]
[1729070115850,0.49421301,155.03,155.0,23.776884]
[1729070118149,0.49421301,155.03,155.01,20.0]
[1729070118361,0.49421301,155.03,155.0,23.776884]
[1729070118849,0.49421301,155.03,155.01,20.0]
[1729070122250,0.49421301,155.03,155.02,23.776884]
[1729070123534,0.49421301,155.03,155.02,43.776884]
[1729070124733,0.49421301,155.03,155.02,56.62836867]
[1729070127737,0.49421301,155.03,155.02,43.776884]
[1729070128136,0.49421301,155.03,155.02,56.62836867]
[1729070130257,0.49421301,155.03,155.02,20.0]
[1729070130547,0.49421301,155.03,155.01,20.0]
[1729070130727,0.49421301,155.03,154.99,0.96816552]
[1729070132042,0.49421301,155.03,155.01,20.0]
[1729070132963,6.94461301,155.03,154.95,6.7254776]
[1729070133126,6.94461301,155.03,154.96,20.0]
[1729070133326,6.94461301,155.03,154.95,19.57696227]
[1729070133531,6.94461301,155.03,154.96,0.96832833]
[1729070133751,0.49421301,155.03,154.96,13.819813]
[1729070134558,0.49421301,155.03,154.99,23.776884]
[1729070140141,0.49421301,155.03,155.01,23.776884]
[1729070150382,0.49421301,155.03,155.0,23.776884]
[1729070151847,0.49421301,155.03,155.01,20.0]
[1729070152050,0.49421301,155.03,155.02,43.776884]
[1729070158274,0.49421301,155.03,155.02,47.59918529]
[1729070158581,0.49421301,155.03,155.02,60.45066996]
[1729070158871,0.49421301,155.03,155.02,43.776884]
[1729070159051,0.49421301,155.03,155.02,47.59839341]
[1729070161584,0.49421301,155.03,155.02,43.776884]
[1729070161781,0.49421301,155.03,155.02,47.59757375]
[1729070162680,0.49421301,155.03,154.97,0.96830738]
[1729070163053,0.49421301,155.03,154.98,3.82238501]
[1729070163254,0.49421301,155.03,154.99,3.82238501]
[1729070163475,0.49421301,155.03,154.97,0.96830738]
[1729070163677,0.49421301,155.03,154.98,3.82340237]
[1729070163879,0.49421301,155.03,154.97,0.96830738]
[1729070163880,0.49421301,155.03,154.99,3.82340237]
[1729070164069,0.49421301,155.03,154.99,23.776884]
[1729070164275,0.49421301,155.03,154.97,0.96830738]
[1729070164470,6.4512,155.01,154.98,3.82312987]
[1729070164652,6.4512,155.01,154.95,3.82312987]
[1729070164957,6.4512,155.01,154.96,3.82312987]
[1729070165153,6.4512,155.01,154.97,3.82312987]
[1729070165352,6.4512,155.01,154.94,6.72767789]
[1729070165564,6.4512,155.01,154.95,23.82166719]
[1729070165782,6.4512,155.01,154.96,3.82166719]
[1729070165967,6.4512,155.01,154.95,20.0]
[1729070165968,6.4512,155.01,154.97,3.82166719]
[1729070166164,0.49421301,155.03,154.97,20.0]
[1729070166366,0.49421301,155.03,155.0,23.776884]
[1729070167181,30.0,155.01,155.0,43.776884]
[1729070167488,30.0,155.01,155.0,47.5960234]
[1729070169476,0.49421301,155.03,155.01,20.0]
[1729070169789,30.49421301,155.03,155.02,60.44750807]
[1729070170382,30.49421301,155.03,155.02,47.5960234]
[1729070171768,0.49421301,155.03,155.02,47.5960234]
[1729070172791,30.49421301,155.03,155.02,47.5960234]
[1729070173765,30.49421301,155.03,155.02,3.8191394]
[1729070174086,30.49421301,155.03,155.0,20.0]
[1729070174087,30.49421301,155.03,155.01,3.8191394]
[1729070174264,30.49421301,155.03,155.02,3.8191394]
[1729070174465,30.49421301,155.03,155.01,3.8191394]
[1729070176189,30.49421301,155.03,155.0,3.8191394]
[1729070176504,30.49421301,155.03,155.01,3.8191394]
[1729070176662,30.49421301,155.03,155.01,23.776884]
[1729070176862,30.49421301,155.03,155.02,23.8191394]
[1729070177086,30.49421301,155.03,155.02,23.81359094]
[1729070177672,30.49421301,155.03,155.02,20.0]
[1729070178085,30.49421301,155.03,155.02,23.81331267]
[1729070178292,30.49421301,155.03,155.02,20.0]
[1729070181968,30.49421301,155.03,154.98,0.96823317]
[1729070182287,30.49421301,155.03,154.99,3.8155211]
[1729070183291,30.49421301,155.03,154.99,23.8155211]
[1729070183489,30.49421301,155.03,154.99,20.0]
[1729070184291,30.49421301,155.03,155.01,20.0]
[1729070185797,30.49421301,155.03,155.02,23.776884]
[1729070186100,30.49421301,155.03,155.02,47.5929486]
[1729070187577,30.49421301,155.03,155.02,60.44443327]
[1729070188091,0.49421301,155.03,155.02,60.44443327]
[1729070192795,0.49421301,155.03,155.02,56.62836867]
[1729070192992,0.49421301,155.03,155.02,60.44848662]
[1729070196280,0.49421301,155.03,155.02,23.82011795]
[1729070196479,30.49421301,155.03,155.02,3.82011795]
[1729070196680,6.5675,155.02,154.99,3.82011795]
[1729070196892,6.5675,155.02,155.0,3.82511043]
[1729070197792,6.5675,155.02,154.98,0.96821954]
[1729070197999,13.0184,155.02,154.94,6.7328292]
[1729070198206,13.0184,155.02,154.99,3.82608789]
[1729070198900,13.0184,155.02,154.96,23.776884]
[1729070199094,13.0184,155.02,154.97,3.82608789]
[1729070199095,6.4517,155.0,154.97,3.82608789]
[1729070199481,6.4516,155.0,154.92,6.73370847]
[1729070199802,30.0,154.99,154.93,3.82510734]
[1729070199985,30.0,154.99,154.94,3.82510734]
[1729070200187,22.6679,154.98,154.95,3.82510734]
[1729070200393,22.6679,154.98,154.92,3.82510734]
[1729070200394,16.2154,154.98,154.92,3.82510734]
[1729070200592,16.2154,154.98,154.93,3.82579462]
[1729070200797,16.2154,154.98,154.92,20.0]
[1729070201003,30.0,154.96,154.94,3.82574186]
[1729070201201,30.0,154.96,154.95,3.82574458]
[1729070201910,30.0,154.96,154.94,23.82574186]
[1729070202201,30.0,154.96,154.94,3.82574186]
[1729070202781,30.0,154.96,154.94,23.82574186]
[1729070203906,30.0,154.96,154.94,3.82574186]
[1729070207197,30.0,154.96,154.95,43.776884]
[1729070208008,30.0,154.96,154.95,56.62836867]
[1729070209497,30.0,154.96,154.95,32.85148467]
[1729070210111,30.0,154.96,154.94,20.0]
[1729070215609,30.0,154.96,154.92,0.9685906]
[1729070215810,36.5559,154.96,154.92,4.78162883]
[1729070216011,36.5559,154.96,154.89,26.73553257]
[1729070216894,36.5559,154.96,154.89,20.0]
[1729070217088,6.5559,154.96,154.89,20.0]
[1729070217588,6.5559,154.96,154.91,20.0]
[1729070220114,30.0,154.95,154.91,20.0]
[1729070221017,30.0,154.95,154.94,43.776884]
[1729070221204,30.0,154.95,154.94,56.62836867]
[1729070221401,30.0,154.95,154.87,6.73616989]
[1729070221622,30.0,154.95,154.91,20.0]
[1729070222319,30.0,154.95,154.89,20.0]
[1729070224722,30.0,154.95,154.87,20.0]
[1729070224910,6.4534,154.94,154.89,20.0]
[1729070225116,15.6156,154.92,154.87,23.776884]
[1729070225499,15.6156,154.92,154.86,0.96895749]
[1729070226022,30.0,154.91,154.86,0.96895749]
[1729070226223,30.0,154.91,154.83,7.85911404]
[1729070226408,36.4553,154.91,154.82,16.66588954]
[1729070226610,6.4558,154.9,154.82,12.85148467]
[1729070226803,36.4554,154.91,154.82,12.85148467]
[1729070227005,30.0,154.88,154.82,13.8207255]
[1729070227228,30.0,154.88,154.84,12.85148467]
[1729070227805,30.0,154.88,154.85,23.776884]
[1729070228021,30.0,154.88,154.86,32.85148467]
[1729070228213,30.0,154.88,154.87,43.776884]
[1729070230309,30.0,154.89,154.88,43.776884]
[1729070231036,30.0,154.89,154.88,56.62836867]
[1729070237339,15.6347,154.96,154.89,23.776884]
[1729070237521,15.6347,154.96,154.9,20.0]
[1729070237719,30.0,154.91,154.9,43.776884]
[1729070239244,30.0,154.91,154.9,56.62836867]
[1729070240241,30.0,154.91,154.89,20.0]
[1729070240635,30.0,154.91,154.9,32.85148467]
[1729070241532,15.6347,154.96,154.9,56.62836867]
[1729070241722,15.6347,154.96,154.94,12.85148467]
[1729070241924,30.0,154.95,154.94,32.85148467]
[1729070245253,30.0,154.95,154.94,56.62836867]
[1729070248522,30.0,154.95,154.94,60.45496402]
[1729070249138,16.3586,155.0,154.95,43.776884]
[1729070249344,30.0,154.96,154.95,43.776884]
[1729070249515,30.0,154.96,154.95,60.45324523]
[1729070250136,16.3586,155.0,154.95,60.45324523]
[1729070250344,16.3586,155.0,154.97,23.776884]
[1729070250546,30.0,154.98,154.97,56.62836867]
[1729070251043,0.49421301,155.03,154.98,20.0]
[1729070251432,30.0,154.99,154.98,43.776884]
[1729070256228,0.49421301,155.03,155.0,20.0]
[1729070256429,30.0,155.01,154.98,56.62836867]
[1729070256642,30.0,155.01,155.0,20.0]
[1729070257251,30.0,155.01,154.97,36.62836867]
[1729070257540,30.0,155.01,154.98,20.0]
[1729070257930,0.49421301,155.03,154.98,20.0]
[1729070260839,30.0,155.0,154.98,20.0]
[1729070262234,30.0,155.0,154.94,0.96847385]
[1729070262450,16.5546,154.99,154.94,13.81995852]
[1729070262749,6.4533,154.96,154.89,6.72547469]
[1729070263136,6.4533,154.96,154.86,12.85148467]
[1729070263640,30.0,154.95,154.86,13.8204618]
[1729070264240,30.0,154.95,154.87,20.0]
[1729070265056,30.0,154.95,154.89,20.0]
[1729070265423,30.0,154.95,154.91,20.0]
[1729070267257,30.0,154.95,154.94,56.62836867]
[1729070267629,30.0,154.95,154.94,43.776884]
[1729070267851,30.0,154.95,154.89,0.96876592]
[1729070268260,30.0,154.95,154.86,12.85148467]
[1729070268762,30.0,154.95,154.88,12.85148467]
[1729070271263,30.0,154.95,154.89,20.0]
[1729070273534,30.0,154.95,154.9,23.776884]
[1729070273941,30.0,154.95,154.91,20.0]
[1729070275550,30.0,154.95,154.92,36.62836867]
[1729070275756,30.0,154.95,154.93,20.0]
[1729070281964,30.0,154.95,154.94,56.62836867]
[1729070283663,6.1596,155.02,154.95,20.0]
[1729070283869,6.1596,155.02,154.97,12.85148467]
[1729070284957,6.1596,155.02,154.95,12.85148467]
[1729070285141,0.1,154.99,154.88,19.58517739]
[1729070285337,0.2,155.0,154.88,19.58517739]
[1729070285554,6.4529,154.97,154.88,12.85148467]
[1729070285966,6.4529,154.97,154.86,26.75814103]
[1729070286561,6.4529,154.97,154.89,20.0]
[1729070286765,6.4529,154.97,154.9,23.776884]
[1729070287068,6.4529,154.97,154.91,20.0]
[1729070287859,6.4524,154.98,154.91,20.0]
[1729070291079,6.4521,154.99,154.92,23.776884]
[1729070292165,22.3393,154.97,154.87,20.0]
[1729070292464,28.7923,154.97,154.87,20.0]
[1729070292667,22.3393,154.97,154.87,20.0]
[1729070293054,22.3393,154.97,154.88,20.02218366]
[1729070293254,22.3393,154.97,154.89,20.0]
[1729070293580,22.3393,154.97,154.91,20.0]
[1729070294175,28.7922,154.97,154.91,20.0]
[1729070294478,6.4533,154.96,154.91,20.0]
[1729070295977,22.4393,154.97,154.86,7.70493585]
[1729070296283,0.2,154.96,154.86,0.96897848]
[1729070296454,6.4548,154.93,154.86,0.96897848]
[1729070297480,28.159,154.91,154.83,6.73753542]
[1729070297783,21.7035,154.91,154.83,6.73753542]
[1729070298081,15.2886,154.91,154.84,20.02218366]
[1729070298387,21.7035,154.95,154.86,20.02218366]
[1729070298760,21.7035,154.95,154.87,43.776884]
[1729070301379,28.1575,154.95,154.87,43.776884]
[1729070301953,28.1572,154.95,154.87,43.776884]
[1729070302361,21.7035,154.95,154.89,43.776884]
[1729070302875,15.2886,154.95,154.89,43.776884]
[1729070303078,21.8239,154.99,154.89,43.776884]
[1729070303291,21.8239,154.99,154.91,43.776884]
[1729070304175,6.4525,154.98,154.91,43.776884]
[1729070304375,6.4534,154.96,154.91,43.776884]
[1729070304680,6.4537,154.95,154.9,23.776884]
[1729070304852,38.1545,154.99,154.89,20.0]
[1729070304853,22.743,154.93,154.89,20.0]
[1729070305058,22.743,154.93,154.87,0.96889672]
[1729070305059,6.455,154.92,154.87,0.96889672]
[1729070306063,29.2485,154.93,154.87,0.96889672]
[1729070306276,22.7939,154.93,154.88,23.776884]
[1729070307887,29.2485,154.93,154.87,0.96889672]
[1729070308280,6.4553,154.91,154.87,0.96889672]
[1729070308459,6.4549,154.92,154.87,0.96889672]
[1729070309284,22.7939,154.93,154.87,0.96889672]
[1729070309663,16.2885,154.93,154.88,23.776884]
[1729070310071,29.2746,154.97,154.9,23.776884]
[1729070311967,22.8214,154.97,154.92,23.776884]
[1729070312361,29.2743,154.97,154.92,23.776884]
[1729070315360,15.5214,154.91,154.87,23.776884]
[1729070315980,15.5214,154.91,154.88,20.0]
[1729070316186,15.5416,154.95,154.89,23.776884]
[1729070318678,6.2447,154.97,154.89,23.776884]
[1729070318881,6.2447,154.97,154.91,23.776884]
[1729070319272,6.4525,154.98,154.93,23.776884]
[1729070321083,15.8793,154.99,154.94,20.0]
[1729070321286,22.3315,154.99,154.94,20.0]
[1729070322568,6.4525,154.98,154.94,20.0]
[1729070324891,15.8793,154.99,154.91,20.0]
[1729070325080,15.8793,154.99,154.92,3.83405426]
[1729070325283,6.4537,154.95,154.87,0.96887468]
[1729070325590,6.4693,154.96,154.88,3.83534701]
[1729070325799,16.2716,154.94,154.88,3.83534701]
[1729070325968,6.4552,154.92,154.88,3.83534701]
[1729070326171,6.4552,154.92,154.87,0.96887468]
[1729070326577,6.4552,154.92,154.87,4.80422169]
[1729070326776,6.4553,154.91,154.87,0.96887468]
[1729070327191,6.4553,154.91,154.87,24.80422169]
[1729070327698,6.4553,154.91,154.87,20.96887468]
[1729070327899,6.4553,154.91,154.87,0.96887468]
[1729070328396,6.4553,154.91,154.87,4.80590889]
[1729070328602,6.4553,154.91,154.87,0.96887468]
[1729070328793,6.4553,154.91,154.87,4.80590889]
[1729070328973,6.4553,154.91,154.87,0.96887468]
[1729070329174,6.4553,154.91,154.88,3.83703421]
[1729070330904,6.4553,154.91,154.87,0.96887468]
[1729070331074,6.4553,154.91,154.87,4.80590889]
[1729070331280,6.4553,154.91,154.87,0.96887468]
[1729070331697,6.4553,154.91,154.87,4.81097783]
[1729070331883,6.4553,154.91,154.87,0.96887468]
[1729070332386,6.4553,154.91,154.87,3.84189488]
[1729070332594,6.4553,154.91,154.86,3.84189488]
[1729070332800,6.4553,154.91,154.87,3.84189488]
[1729070332988,6.4553,154.91,154.86,23.776884]
[1729070333301,6.4553,154.91,154.87,23.84189488]
[1729070333486,6.4553,154.91,154.87,20.0]
[1729070334987,6.455,154.92,154.87,20.0]
[1729070337191,6.4555,154.91,154.85,23.776884]
[1729070337393,6.4555,154.91,154.86,23.8409143]
[1729070337601,6.4555,154.91,154.86,20.0]
[1729070340612,23.1335,154.92,154.84,23.776884]
[1729070340822,0.1,154.9,154.85,3.8419111]
[1729070340986,0.1,154.9,154.71,0.1]
[1729070340987,6.4587,154.83,154.78,10.5780491]
[1729070341297,6.4587,154.83,154.73,22.8502]
[1729070341298,6.4587,154.83,154.79,3.8419111]
[1729070341485,6.4587,154.83,154.75,3.8419111]
[1729070341685,6.4587,154.83,154.76,3.8419111]
[1729070341907,6.4582,154.85,154.77,3.8419111]
[1729070342099,6.4584,154.84,154.74,0.96971278]
[1729070342490,6.4584,154.84,154.78,3.84436079]
[1729070342798,6.4584,154.84,154.75,3.84436079]
[1729070342990,6.4584,154.84,154.76,3.84436079]
[1729070343199,6.4584,154.84,154.77,3.84436079]
[1729070343398,6.4584,154.84,154.76,23.776884]
[1729070343600,6.4584,154.84,154.78,23.776884]
[1729070343781,30.0,154.81,154.78,23.776884]
[1729070351518,30.0,154.81,154.8,23.776884]
[1729070352715,30.0,154.81,154.8,43.776884]
[1729070359095,6.604,154.89,154.83,20.0]
[1729070359321,30.0,154.84,154.83,43.776884]
[1729070359532,30.0,154.84,154.83,63.79906766]
[1729070360398,12.6156,154.93,154.84,23.776884]
[1729070360399,6.161,154.93,154.84,23.776884]
[1729070360602,6.161,154.93,154.83,63.89906766]
[1729070360603,6.161,154.93,154.87,43.776884]
[1729070362227,12.6159,154.93,154.87,43.776884]
[1729070362518,6.4553,154.91,154.87,23.776884]
[1729070363102,30.0,154.88,154.87,23.776884]
[1729070363306,30.0,154.88,154.87,43.776884]
[1729070364222,30.0,154.88,154.87,23.776884]
[1729070364524,30.0,154.88,154.87,43.776884]
[1729070365805,6.161,154.93,154.87,43.776884]
[1729070367123,15.23,154.94,154.87,43.776884]
[1729070367307,15.23,154.94,154.91,23.776884]
[1729070367516,30.0,154.92,154.91,23.776884]
[1729070369331,30.0,154.92,154.9,20.0]
[1729070369621,6.4568,154.88,154.83,0.96915207]
[1729070369924,30.0,154.87,154.83,0.96915207]
[1729070370909,30.0,154.87,154.84,23.776884]
[1729070372827,36.4571,154.87,154.84,23.776884]
[1729070373730,30.0,154.87,154.8,23.776884]
[1729070374138,6.4574,154.86,154.81,20.0]
[1729070374332,30.0,154.85,154.82,23.776884]
[1729070375243,6.4584,154.84,154.78,20.0]
[1729070375562,36.4587,154.83,154.77,6.73519873]
[1729070375739,36.4587,154.83,154.75,3.83379524]
[1729070376127,36.4587,154.83,154.75,10.57049581]
[1729070376312,30.0,154.83,154.75,10.57049581]
[1729070376518,30.0,154.83,154.76,23.776884]
[1729070376713,30.0,154.83,154.79,20.0]
[1729070376940,30.0,154.83,154.8,23.776884]
[1729070384830,30.0,154.83,154.75,6.73670057]
[1729070385035,22.5624,154.82,154.76,23.776884]
[1729070385233,30.0,154.81,154.76,23.776884]
[1729070385556,30.0,154.81,154.75,23.776884]
[1729070386259,30.0,154.81,154.77,23.776884]
[1729070389562,30.0,154.81,154.79,23.776884]
[1729070389929,38.2367,154.8,154.73,6.73165707]
[1729070390126,30.0,154.78,154.67,3.82938598]
[1729070390330,6.4623,154.75,154.69,6.73715518]
[1729070390632,6.4623,154.75,154.67,3.82938598]
[1729070390836,6.4623,154.75,154.67,10.56680679]
[1729070391147,30.0,154.74,154.68,20.0]